[Event "FIDE WCCC Open-12 2024"]
[Site "Montesilvano"]
[Date "2024.11.19"]
[Round "5.54"]
[White "Padure, Dragos-Alexandru"]
[Black "Maari Kelly Sosi"]
[Result "1-0"]
[ECO "C45"]
[WhiteElo "1822"]
[BlackElo "1587"]
[Annotator "NA RC"]
[PlyCount "31"]
[EventDate "2024.11.18"]
[EventType "swiss"]
[EventCountry "ITA"]
[SourceTitle "playchess.com"]
[Source "ChessBase"]
[SourceQuality "1"]
[TimeControl "5400+30"]

1. e4 {[%emt 0:00:03]} e5 {[%emt 0:00:07]} 2. Nf3 {[%emt 0:00:05]} Nc6 {[%emt 0:00:15]} 3. Nc3 {[%emt 0:00:06]} Nf6 {[%emt 0:00:07]} 4. d4 {[%emt 0:00:11]} exd4 {[%emt 0:00:08]} 5. Nxd4 {[%emt 0:00:07]} Nxd4 {[%emt 0:00:18]} 6. Qxd4 {[%emt 0:00:08]} d6 {[%emt 0:00:06]} 7. Bg5 {[%emt 0:00:57]} Be7 {[%emt 0:00:23]} 8. O-O-O {[%emt 0:01:10]} a6 {[%emt 0:05:31]} 9. e5 {[%emt 0:05:19]} Nd7 {[%emt 0:03:37]} 10. Bxe7 {[%emt 0:01:05]} Qxe7 {[%emt 0:01:21]} 11. Nd5 {[%emt 0:02:03]} Qd8 {[%emt 0:01:03]} 12. exd6 {[%emt 0:01:03]} cxd6 {[%emt 0:00:55]} 13. Qxg7 {[%emt 0:00:41]} Rf8 {[%emt 0:00:59]} 14. Bc4 {[%emt 0:11:01]} b5 {[%emt 0:00:52]} 15. Rhe1+ {[%emt 0:02:25]} Ne5 {[%emt 0:00:04]} 16. Nf6+ {[%emt 0:02:33]} 1-0

[Event "FIDE WCCC Open-12 2024"]
[Site "Montesilvano"]
[Date "2024.11.19"]
[Round "5.55"]
[White "Sharku, Uvejs"]
[Black "Dos Santos, Leonardo Lopes"]
[Result "0-1"]
[ECO "B13"]
[WhiteElo "1516"]
[BlackElo "1930"]
[Annotator "RC"]
[PlyCount "116"]
[EventDate "2024.11.18"]
[EventType "swiss"]
[EventCountry "ITA"]
[SourceTitle "playchess.com"]
[Source "ChessBase"]
[SourceQuality "1"]
[TimeControl "5400+30"]

1. d4 {[%emt 0:00:17]} d5 {[%emt 0:00:18]} 2. Bf4 {[%emt 0:00:44]} c5 {[%emt 0:00:08]} 3. e3 {[%emt 0:01:10]} cxd4 {[%emt 0:00:13]} 4. exd4 {[%emt 0:00:11]} Nc6 {[%emt 0:00:48]} 5. Nf3 {[%emt 0:01:54]} Nf6 {[%emt 0:01:43]} 6. c3 {[%emt 0:05:29]} e6 {[%emt 0:05:18]} 7. Bd3 {[%emt 0:04:13]} Bd6 {[%emt 0:01:45]} 8. Bg3 {[%emt 0:04:48]} Bxg3 {[%emt 0:08:25]} 9. hxg3 {[%emt 0:00:35]} Qc7 {[%emt 0:00:47]} 10. Qe2 {[%emt 0:21:15]} h6 {[%emt 0:08:58]} 11. Na3 {[%emt 0:13:13]} a6 {[%emt 0:10:48]} 12. O-O {[%emt 0:06:56]} O-O {[%emt 0:03:52]} 13. Rac1 {[%emt 0:03:05]} Rd8 {[%emt 0:05:39]} 14. Bb1 {[%emt 0:03:29]} Bd7 {[%emt 0:07:29]} 15. Rfe1 {[%emt 0:02:06]} Be8 {[%emt 0:04:37]} 16. Ne5 {[%emt 0:01:46]} Nd7 {[%emt 0:03:10]} 17. Nxd7 {[%emt 0:04:26]} Qxd7 {[%emt 0:04:51]} 18. Qd3 {[%emt 0:02:21]} g6 {[%emt 0:00:36]} 19. g4 {[%emt 0:00:58]} Qe7 {[%emt 0:08:44]} 20. Qh3 {[%emt 0:01:34]} Qg5 {[%emt 0:03:10]} 21. g3 {[%emt 0:02:54]} e5 {[%emt 0:04:29]} 22. Kg2 {[%emt 0:07:55]} Bd7 {[%emt 0:03:01]} 23. Rh1 {[%emt 0:04:58]} Bxg4 {[%emt 0:01:10]} 24. Qxh6 {[%emt 0:00:09]} Qxh6 {[%emt 0:00:07]} 25. Rxh6 {[%emt 0:00:03]} Bh5 {[%emt 0:02:58]} 26. Rh1 {[%emt 0:02:33]} Kg7 {[%emt 0:00:44]} 27. R6xh5 {[%emt 0:01:01]} gxh5 {[%emt 0:00:28]} 28. Rxh5 {[%emt 0:00:05]} exd4 {[%emt 0:00:50]} 29. cxd4 {[%emt 0:00:59]} Nxd4 {[%emt 0:00:28]} 30. Rh7+ {[%emt 0:00:48]} Kf6 {[%emt 0:01:06]} 31. Rh6+ {[%emt 0:00:17]} Ke7 {[%emt 0:00:21]} 32. Nc2 {[%emt 0:00:36]} Nxc2 {[%emt 0:00:40]} 33. Bxc2 {[%emt 0:00:04]} Rac8 {[%emt 0:00:10]} 34. Bd3 {[%emt 0:00:30]} Rd6 {[%emt 0:01:28]} 35. Rh1 {[%emt 0:00:08]} Rb6 {[%emt 0:01:53]} 36. Re1+ {[%emt 0:00:08]} Kd6 {[%emt 0:00:54]} 37. Re2 {[%emt 0:00:30]} Rc7 {[%emt 0:01:25]} 38. b3 {[%emt 0:00:49]} Re7 {[%emt 0:00:36]} 39. Rd2 {[%emt 0:00:09]} Kc5 {[%emt 0:00:34]} 40. Bf5 {[%emt 0:00:10]} d4 {[%emt 0:00:31]} 41. g4 {[%emt 0:00:13]} Rd6 {[%emt 0:01:28]} 42. a3 {[%emt 0:00:23]} Rb6 {[%emt 0:00:47]} 43. Rd3 {[%emt 0:00:29]} Re1 {[%emt 0:00:59]} 44. Kf3 {[%emt 0:00:07]} Ra1 {[%emt 0:01:23]} 45. Ke4 {[%emt 0:00:10]} Rxa3 {[%emt 0:00:47]} 46. Rxd4 {[%emt 0:00:47]} Rb4 {[%emt 0:01:24]} 47. Rxb4 {[%emt 0:00:15]} Kxb4 {[%emt 0:00:07]} 48. Ke5 {[%emt 0:00:03]} Rxb3 {[%emt 0:00:29]} 49. Kf6 {[%emt 0:00:08]} Rf3 {[%emt 0:00:08]} 50. Kxf7 {[%emt 0:00:08]} Rxf2 {[%emt 0:00:10]} 51. Kg6 {[%emt 0:00:36]} b5 {[%emt 0:00:16]} 52. g5 {[%emt 0:00:05]} a5 {[%emt 0:00:23]} 53. Kf6 {[%emt 0:00:13]} Kc3 {[%emt 0:00:21]} 54. g6 {[%emt 0:00:05]} Rg2 {[%emt 0:00:13]} 55. g7 {[%emt 0:00:20]} Rxg7 {[%emt 0:00:06]} 56. Kxg7 {[%emt 0:00:06]} b4 {[%emt 0:00:16]} 57. Kf6 {[%emt 0:00:04]} a4 {[%emt 0:00:07]} 58. Ke5 {[%emt 0:00:05]} b3 {[%emt 0:00:15]} 0-1

[Event "FIDE WCCC Open-12 2024"]
[Site "Montesilvano"]
[Date "2024.11.19"]
[Round "5.56"]
[White "Lenoks, Martin Jr."]
[Black "Wang, Luis"]
[Result "0-1"]
[ECO "C50"]
[WhiteElo "1514"]
[BlackElo "1751"]
[Annotator "NA RC"]
[PlyCount "54"]
[EventDate "2024.11.18"]
[EventType "swiss"]
[EventCountry "ITA"]
[SourceTitle "playchess.com"]
[Source "ChessBase"]
[SourceQuality "1"]
[TimeControl "5400+30"]

1. e4 {[%emt 0:00:01]} e5 {[%emt 0:00:09]} 2. Nf3 {[%emt 0:00:36]} Nc6 {[%emt 0:00:11]} 3. Bc4 {[%emt 0:00:05]} Bc5 {[%emt 0:00:15]} 4. Nc3 {[%emt 0:02:52]} d6 {[%emt 0:00:19]} 5. h3 {[%emt 0:00:12]} Nf6 {[%emt 0:00:15]} 6. d3 {[%emt 0:00:06]} h6 {[%emt 0:05:22]} 7. O-O {[%emt 0:01:24]} Bd7 {[%emt 0:03:06]} 8. Re1 {[%emt 0:02:55]} Qe7 {[%emt 0:02:21]} 9. a3 {[%emt 0:00:23]} g5 {[%emt 0:10:00]} 10. Nh2 {[%emt 0:11:54]} O-O-O {[%emt 0:01:22]} 11. Be3 {[%emt 0:05:10]} Nd4 {[%emt 0:02:03]} 12. Bxd4 {[%emt 0:03:30]} Bxd4 {[%emt 0:02:54]} 13. Qd2 {[%emt 0:02:09]} Rdg8 {[%emt 0:03:17]} 14. Kf1 {[%emt 0:05:32]} g4 {[%emt 0:01:26]} 15. hxg4 {[%emt 0:04:02]} Nxg4 {[%emt 0:00:33]} 16. Nxg4 {[%emt 0:00:09]} Rxg4 {[%emt 0:00:14]} 17. g3 {[%emt 0:00:40]} Qf6 {[%emt 0:10:32]} 18. Kg2 {[%emt 0:05:16]} Bxc3 {[%emt 0:09:40]} 19. Qxc3 {[%emt 0:02:34]} h5 {[%emt 0:00:46]} 20. f3 {[%emt 0:10:30]} h4 {[%emt 0:03:14]} 21. fxg4 {[%emt 0:01:58]} h3+ {[%emt 0:00:11]} 22. Kg1 {[%emt 0:04:11]} h2+ {[%emt 0:00:13]} 23. Kg2 {[%emt 0:00:24]} Bxg4 {[%emt 0:00:10]} 24. Rf1 {[%emt 0:00:51]} Bh3+ {[%emt 0:00:09]} 25. Kxh2 {[%emt 0:00:40]} Bxf1+ {[%emt 0:00:10]} 26. Kg1 {[%emt 0:00:10]} Rh1+ {[%emt 0:00:26]} 27. Kxh1 {[%emt 0:00:28]} Qf3+ {[%emt 0:44:42]} 0-1

[Event "FIDE WCCC Open-12 2024"]
[Site "Montesilvano"]
[Date "2024.11.19"]
[Round "5.57"]
[White "Andreiev, Andrii"]
[Black "Huang, Hao-Xuan"]
[Result "0-1"]
[ECO "C78"]
[WhiteElo "1704"]
[BlackElo "1516"]
[Annotator "NA RC"]
[PlyCount "54"]
[EventDate "2024.11.18"]
[EventType "swiss"]
[EventCountry "ITA"]
[SourceTitle "playchess.com"]
[Source "ChessBase"]
[SourceQuality "1"]
[TimeControl "5400+30"]

1. e4 {[%emt 0:00:01]} e5 {[%emt 0:00:18]} 2. Nf3 {[%emt 0:00:06]} Nc6 {[%emt 0:00:21]} 3. Bb5 {[%emt 1:31:53]} a6 {[%emt 0:00:13]} 4. Ba4 {[%emt 0:00:00]} Nf6 {[%emt 0:01:24]} 5. O-O {[%emt 0:00:00]} b5 {[%emt 0:01:56]} 6. Bb3 {[%emt 0:00:00]} Bb4 {[%emt 0:01:41]} 7. c3 {[%emt 0:00:00]} Ba5 {[%emt 0:01:00]} 8. d4 {[%emt 0:00:00]} exd4 {[%emt 0:04:04]} 9. cxd4 {[%emt 0:00:00]} Nxe4 {[%emt 0:01:20]} 10. Bd2 {[%emt 0:00:00]} Nxd2 {[%emt 0:01:14]} 11. Re1+ {[%emt 0:00:00]} Ne7 {[%emt 0:01:33]} 12. Nbxd2 {[%emt 0:00:00]} O-O {[%emt 0:01:22]} 13. Ng5 {[%emt 0:00:00]} d5 {[%emt 0:03:17]} 14. Re3 {[%emt 0:00:00]} Nf5 {[%emt 0:02:24]} 15. Rh3 {[%emt 0:00:00]} Qxg5 {[%emt 0:01:38]} 16. Rh5 {[%emt 0:00:00]} Qxd2 {[%emt 0:01:18]} 17. Qxd2 {[%emt 0:00:00]} Bxd2 {[%emt 0:00:26]} 18. Bxd5 {[%emt 0:00:00]} Rb8 {[%emt 0:01:12]} 19. Rd1 {[%emt 0:00:00]} Ba5 {[%emt 0:03:53]} 20. Rd3 {[%emt 0:00:00]} Ne7 {[%emt 0:02:25]} 21. Be4 {[%emt 0:00:00]} Ng6 {[%emt 0:01:42]} 22. g3 {[%emt 0:00:00]} Bg4 {[%emt 0:02:54]} 23. Rg5 {[%emt 0:00:00]} Be2 {[%emt 0:01:30]} 24. Ra3 {[%emt 0:00:00]} Bd2 {[%emt 0:01:57]} 25. Rf5 {[%emt 0:00:00]} Bg4 {[%emt 0:02:14]} 26. Rd5 {[%emt 0:00:00]} c6 {[%emt 0:00:35]} 27. Rd7 {[%emt 0:00:00]} Bxd7 {[%emt 1:00:09]} 0-1

[Event "FIDE WCCC Open-12 2024"]
[Site "Montesilvano"]
[Date "2024.11.19"]
[Round "5.58"]
[White "Son, Juwon"]
[Black "Teo, Hong Kai Javier"]
[Result "1-0"]
[ECO "C06"]
[WhiteElo "1448"]
[BlackElo "1675"]
[Annotator "NA RC"]
[PlyCount "51"]
[EventDate "2024.11.18"]
[EventType "swiss"]
[EventCountry "ITA"]
[SourceTitle "playchess.com"]
[Source "ChessBase"]
[SourceQuality "1"]
[TimeControl "5400+30"]

1. e4 {[%emt 0:00:01]} e6 {[%emt 0:00:29]} 2. d4 {[%emt 0:00:02]} d5 {[%emt 0:00:49]} 3. Nd2 {[%emt 0:00:04]} Nf6 {[%emt 0:00:48]} 4. e5 {[%emt 0:00:13]} Nfd7 {[%emt 0:00:24]} 5. Bd3 {[%emt 0:00:10]} c5 {[%emt 0:01:33]} 6. c3 {[%emt 0:00:12]} Nc6 {[%emt 0:01:08]} 7. Ne2 {[%emt 0:00:45]} Qb6 {[%emt 0:02:22]} 8. Nf3 {[%emt 0:00:46]} cxd4 {[%emt 0:00:25]} 9. cxd4 {[%emt 0:00:24]} Bb4+ {[%emt 0:00:20]} 10. Kf1 {[%emt 0:00:17]} Be7 {[%emt 1:27:12]} 11. a3 {[%emt 0:04:35]} a5 {[%emt 0:00:00]} 12. h4 {[%emt 0:08:21]} f6 {[%emt 0:00:00]} 13. Nf4 {[%emt 0:34:27]} Ndb8 {[%emt 0:00:00]} 14. exf6 {[%emt 0:06:49]} Bxf6 {[%emt 0:00:00]} 15. Ng5 {[%emt 0:01:40]} g6 {[%emt 0:00:00]} 16. Nxh7 {[%emt 0:02:43]} Rxh7 {[%emt 0:00:00]} 17. Bxg6+ {[%emt 0:00:06]} Rf7 {[%emt 0:00:00]} 18. Bxf7+ {[%emt 0:01:40]} Kxf7 {[%emt 0:00:00]} 19. Qh5+ {[%emt 0:00:10]} Ke7 {[%emt 0:00:00]} 20. Ng6+ {[%emt 0:00:22]} Kd8 {[%emt 0:00:00]} 21. Bg5 {[%emt 0:01:18]} Bxg5 {[%emt 0:00:00]} 22. Qxg5+ {[%emt 0:00:06]} Kc7 {[%emt 0:00:00]} 23. Qf4+ {[%emt 0:00:33]} e5 {[%emt 0:00:00]} 24. dxe5 {[%emt 0:36:46]} Be6 {[%emt 0:00:00]} 25. Nf8 {[%emt 0:00:00]} Nd4 {[%emt 0:00:00]} 26. Qxd4 {[%emt 0:00:00]} 1-0

[Event "FIDE WCCC Open-12 2024"]
[Site "Montesilvano"]
[Date "2024.11.19"]
[Round "5.59"]
[White "Zhan, Jayden Zihan"]
[Black "Pennacchia, Domenico"]
[Result "1/2-1/2"]
[ECO "B25"]
[WhiteElo "1670"]
[BlackElo "1510"]
[Annotator "NA RC"]
[PlyCount "104"]
[EventDate "2024.11.18"]
[EventType "swiss"]
[EventCountry "ITA"]
[SourceTitle "playchess.com"]
[Source "ChessBase"]
[SourceQuality "1"]
[TimeControl "5400+30"]

1. e4 {[%emt 0:00:03]} c5 {[%emt 0:00:15]} 2. Nc3 {[%emt 0:00:16]} Nc6 {[%emt 0:00:43]} 3. g3 {[%emt 0:00:08]} g6 {[%emt 0:00:16]} 4. Bg2 {[%emt 0:00:07]} Bg7 {[%emt 0:00:09]} 5. d3 {[%emt 0:00:05]} d6 {[%emt 0:00:19]} 6. f4 {[%emt 0:00:05]} e6 {[%emt 0:00:35]} 7. Nf3 {[%emt 0:00:11]} Nge7 {[%emt 0:00:30]} 8. O-O {[%emt 0:00:25]} O-O {[%emt 0:00:18]} 9. Be3 {[%emt 0:00:10]} Nd4 {[%emt 0:01:14]} 10. e5 {[%emt 0:00:15]} Nef5 {[%emt 0:04:57]} 11. Bf2 {[%emt 0:00:07]} Nxf3+ {[%emt 0:02:36]} 12. Qxf3 {[%emt 0:00:24]} Nd4 {[%emt 0:00:29]} 13. Qd1 {[%emt 0:00:32]} dxe5 {[%emt 0:00:43]} 14. fxe5 {[%emt 0:00:12]} Bxe5 {[%emt 0:00:08]} 15. Ne4 {[%emt 0:00:27]} Nc6 {[%emt 0:03:42]} 16. Bxc5 {[%emt 0:03:09]} Bd4+ {[%emt 0:01:40]} 17. Bxd4 {[%emt 0:06:24]} Qxd4+ {[%emt 0:00:28]} 18. Kh1 {[%emt 0:00:15]} f5 {[%emt 0:02:56]} 19. Nc3 {[%emt 0:09:36]} Bd7 {[%emt 0:05:27]} 20. Rf4 {[%emt 0:04:39]} Qf6 {[%emt 0:02:05]} 21. Qd2 {[%emt 0:02:17]} a6 {[%emt 1:11:30]} 22. Re1 {[%emt 0:01:57]} Rab8 {[%emt 0:00:00]} 23. Na4 {[%emt 0:04:33]} b6 {[%emt 0:00:00]} 24. Qe3 {[%emt 0:03:23]} g5 {[%emt 0:00:00]} 25. Rff1 {[%emt 0:02:46]} Nd4 {[%emt 0:00:00]} 26. Nxb6 {[%emt 0:06:36]} Rxb6 {[%emt 0:00:00]} 27. c3 {[%emt 0:00:48]} Rxb2 {[%emt 0:00:00]} 28. cxd4 {[%emt 0:00:27]} Rxa2 {[%emt 0:00:00]} 29. Ra1 {[%emt 0:03:55]} Rxa1 {[%emt 0:00:00]} 30. Rxa1 {[%emt 0:00:06]} Bb5 {[%emt 0:00:00]} 31. Re1 {[%emt 0:04:48]} Rd8 {[%emt 0:00:00]} 32. d5 {[%emt 0:07:59]} exd5 {[%emt 0:00:00]} 33. Qc5 {[%emt 0:00:35]} Qd6 {[%emt 0:00:00]} 34. Qe3 {[%emt 0:01:35]} Qf6 {[%emt 0:00:00]} 35. Qc5 {[%emt 0:00:30]} Qd6 {[%emt 0:00:00]} 36. Qe3 {[%emt 0:00:49]} h6 {[%emt 0:00:00]} 37. Qf3 {[%emt 0:01:08]} Qf6 {[%emt 0:00:00]} 38. Bh3 {[%emt 0:05:50]} d4 {[%emt 0:00:00]} 39. Qxf5 {[%emt 0:04:00]} Qxf5 {[%emt 0:00:00]} 40. Bxf5 {[%emt 0:00:08]} Kg7 {[%emt 0:00:00]} 41. Re6 {[%emt 0:04:48]} a5 {[%emt 0:00:00]} 42. Rb6 {[%emt 0:01:56]} Be8 {[%emt 0:00:00]} 43. Ra6 {[%emt 0:02:03]} a4 {[%emt 0:00:00]} 44. Ra5 {[%emt 0:04:04]} Rb8 {[%emt 0:00:00]} 45. Be6 {[%emt 0:03:21]} Rb1+ {[%emt 0:00:00]} 46. Kg2 {[%emt 0:00:19]} Bc6+ {[%emt 0:00:00]} 47. Kh3 {[%emt 0:04:40]} Rb2 {[%emt 0:00:00]} 48. Bc8 {[%emt 0:04:31]} a3 {[%emt 0:00:00]} 49. Ba6 {[%emt 0:03:36]} Bf3 {[%emt 0:00:00]} 50. g4 {[%emt 0:00:58]} Rb3 {[%emt 0:00:00]} 51. Bc4 {[%emt 0:00:23]} Rc3 {[%emt 0:00:00]} 52. Ra7+ {[%emt 0:00:27]} Kg6 {[%emt 0:00:00]} 1/2-1/2

[Event "FIDE WCCC Open-12 2024"]
[Site "Montesilvano"]
[Date "2024.11.19"]
[Round "5.60"]
[White "Italiani, Luca"]
[Black "Sobirov, Feruzbek"]
[Result "1/2-1/2"]
[ECO "C02"]
[WhiteElo "1634"]
[BlackElo "1487"]
[Annotator "NA RC"]
[PlyCount "130"]
[EventDate "2024.11.18"]
[EventType "swiss"]
[EventCountry "ITA"]
[SourceTitle "playchess.com"]
[Source "ChessBase"]
[SourceQuality "1"]
[TimeControl "5400+30"]

1. e4 {[%emt 0:00:03]} e6 {[%emt 0:00:25]} 2. d4 {[%emt 0:00:06]} d5 {[%emt 0:00:20]} 3. e5 {[%emt 0:00:08]} c5 {[%emt 0:00:25]} 4. Nf3 {[%emt 0:00:07]} Nc6 {[%emt 0:00:43]} 5. c3 {[%emt 0:00:09]} Qb6 {[%emt 0:00:15]} 6. Bd3 {[%emt 0:00:19]} cxd4 {[%emt 0:01:09]} 7. cxd4 {[%emt 0:00:08]} Bd7 {[%emt 0:00:06]} 8. O-O {[%emt 0:01:24]} Nxd4 {[%emt 0:00:08]} 9. Nxd4 {[%emt 0:00:11]} Qxd4 {[%emt 0:00:08]} 10. Re1 {[%emt 0:00:32]} Ne7 {[%emt 0:01:20]} 11. Nc3 {[%emt 0:00:45]} Nc6 {[%emt 0:01:12]} 12. Nb5 {[%emt 0:01:10]} Qb6 {[%emt 0:00:36]} 13. Be3 {[%emt 0:05:52]} d4 {[%emt 0:02:01]} 14. Bf4 {[%emt 0:05:06]} a6 {[%emt 0:02:21]} 15. Nd6+ {[%emt 0:02:52]} Bxd6 {[%emt 0:01:37]} 16. exd6 {[%emt 0:00:17]} O-O {[%emt 0:01:24]} 17. Rb1 {[%emt 0:00:52]} Rfe8 {[%emt 0:01:13]} 18. h3 {[%emt 0:01:13]} e5 {[%emt 0:00:11]} 19. Bg3 {[%emt 0:03:20]} Qb4 {[%emt 0:02:03]} 20. Qh5 {[%emt 0:04:27]} g6 {[%emt 0:01:03]} 21. Qh6 {[%emt 0:00:30]} Qxd6 {[%emt 0:00:09]} 22. Bc4 {[%emt 0:03:06]} Qf8 {[%emt 0:00:37]} 23. Qg5 {[%emt 0:01:52]} Qg7 {[%emt 0:00:40]} 24. h4 {[%emt 0:03:11]} e4 {[%emt 0:01:21]} 25. Bd6 {[%emt 1:05:20]} e3 {[%emt 0:03:57]} 26. fxe3 {[%emt 0:00:00]} dxe3 {[%emt 0:00:11]} 27. Bf4 {[%emt 0:00:00]} Qd4 {[%emt 0:00:09]} 28. Rbd1 {[%emt 0:00:00]} Qxc4 {[%emt 0:00:09]} 29. Rxd7 {[%emt 0:00:00]} e2 {[%emt 0:00:12]} 30. Qf6 {[%emt 0:00:00]} Qe6 {[%emt 0:00:17]} 31. Qxe6 {[%emt 0:00:00]} Rxe6 {[%emt 0:00:19]} 32. Rxb7 {[%emt 0:00:00]} Nd4 {[%emt 0:00:15]} 33. Kf2 {[%emt 0:00:00]} Rae8 {[%emt 0:00:28]} 34. Rb8 {[%emt 0:00:00]} Rxb8 {[%emt 0:00:31]} 35. Bxb8 {[%emt 0:00:00]} h5 {[%emt 0:00:38]} 36. Ba7 {[%emt 0:00:00]} Nf5 {[%emt 0:00:13]} 37. g3 {[%emt 0:00:00]} Kg7 {[%emt 0:00:14]} 38. Bb8 {[%emt 0:00:00]} Nd4 {[%emt 0:00:26]} 39. Ba7 {[%emt 0:00:00]} Nf5 {[%emt 0:00:15]} 40. a4 {[%emt 0:00:00]} Re4 {[%emt 0:01:23]} 41. Rxe2 {[%emt 0:00:00]} Rxe2+ {[%emt 0:00:25]} 42. Kxe2 {[%emt 0:00:00]} Nxg3+ {[%emt 0:00:05]} 43. Kd3 {[%emt 0:00:00]} Nf5 {[%emt 0:00:15]} 44. Kc4 {[%emt 0:00:00]} Ne7 {[%emt 0:00:42]} 45. Kc5 {[%emt 0:00:00]} f5 {[%emt 0:00:07]} 46. Kc4 {[%emt 0:00:00]} Kf7 {[%emt 0:00:28]} 47. b4 {[%emt 0:00:00]} Ke6 {[%emt 0:01:19]} 48. Bb6 {[%emt 0:00:00]} f4 {[%emt 0:00:48]} 49. b5 {[%emt 0:00:00]} axb5+ {[%emt 0:00:54]} 50. axb5 {[%emt 0:00:00]} Kd7 {[%emt 0:00:08]} 51. Kd4 {[%emt 0:00:00]} Nf5+ {[%emt 0:00:10]} 52. Ke4 {[%emt 0:00:00]} Nxh4 {[%emt 0:00:17]} 53. Kxf4 {[%emt 0:00:00]} Kc8 {[%emt 0:00:50]} 54. Bg1 {[%emt 0:00:00]} Nf5 {[%emt 0:00:19]} 55. Ke5 {[%emt 0:00:00]} h4 {[%emt 0:01:18]} 56. b6 {[%emt 0:00:00]} Ng3 {[%emt 0:01:03]} 57. Kd6 {[%emt 0:00:00]} Kb7 {[%emt 0:00:08]} 58. Ke6 {[%emt 0:00:00]} Ne2 {[%emt 0:00:45]} 59. Bh2 {[%emt 0:00:00]} Nd4+ {[%emt 0:00:20]} 60. Kf6 {[%emt 0:00:00]} Nf3 {[%emt 0:00:30]} 61. Bc7 {[%emt 0:00:00]} g5 {[%emt 0:01:05]} 62. Kf5 {[%emt 0:00:00]} h3 {[%emt 0:00:54]} 63. Kg4 {[%emt 0:00:00]} h2 {[%emt 0:00:09]} 64. Bxh2 {[%emt 0:00:00]} Nxh2+ {[%emt 0:00:08]} 65. Kxg5 {[%emt 0:00:00]} Kxb6 {[%emt 0:00:10]} 1/2-1/2